{"text_format":"1","workbook":"xlsx","n_sheets":1,"sheets":["Tabelle4"],"not_rendered":{"charts":0,"images":2,"macros":1,"external_links":0,"defined_names":1,"comments":0,"pivot_tables":0},"unopened":[],"bounds":{"document_bytes":16777216,"sheet_cells":100000,"rows_first":2000,"rows_last":500,"rows_between":2000,"halvings":0,"cell_chars":16384,"cell_head_chars":4096},"cells_cut":0,"cells_raw":0,"read":"whole","date_system":"1900"}

{"sheet":"Tabelle4","index":0,"n_rows":75,"n_cols":14,"rows_kept":75,"cut":false,"hidden":false,"merged":[[9,2,36,2],[40,2,75,2],[75,4,75,10],[36,4,36,10]]}
[]
[]
[]
[]
[]
[]
[]
[null,null,"Bitte wählen Sie zwischen Standfläche und Full-Service-Stand (Standfläche mit Standbau)."]
[]
[null,null,"nur STANDFLÄCHE "]
[null,null,null,null,"Standfläche: Bitte wählen Sie Ihre Standgröße (m²)"]
[]
[]
[]
[null,null,null,null,"Reihenstand (1 offene Seite)",null,null,null,181,"€ / m²",null,{"$f":"IF(N15=1,I15*L11,0)","v":0},null,3]
[]
[null,null,null,null,"Eckstand (2 offene Seiten)",null,null,null,206,"€ / m²",null,{"$f":"IF(N15=2,I17*L11,0)","v":0}]
[]
[null,null,null,null,"Kopfstand (3 offene Seiten)",null,null,null,214,"€ / m²",null,{"$f":"IF(N15=3,I19*L11,0)","v":0}]
[]
[null,null,null,null,"Blockstand (4 offene Seiten)",null,null,null,221,"€ / m²",null,{"$f":"IF(N15=4,221*L11,0)","v":0}]
[]
[]
[]
[null,null,null,null,"Anmeldegebühr",null,null,null,553,"€ / Aussteller",null,{"$f":"IF(SUM(L15:L21)>0,553,0 )","v":0}]
[]
[null,null,null,null,"AUMA-Gebühr",null,null,null,0.6,"€ / m²",null,{"$f":"IF(SUM(L15:L21)>0,L11*0.6,0)","v":0}]
[]
[null,null,null,null,"Medienpaket BASIC",null,null,null,795,"€ / Aussteller",null,{"$f":"IF(SUM(L15:L21)>0,795,0)","v":0}]
[]
[null,null,null,null,"Mitaussteller-Gebühr",null,0,null,389,"€ / Mitaussteller",null,{"$f":"IF(SUM(L15:L21)>0,G31*(I31+I25+I29),0)","v":0},"*)"]
[null,null,null,null,"*) beinhaltet Mitaussteller-Gebühr, Anmeldegebühr und Medienpaket BASIC"]
[]
[]
[]
[null,null,null,null,"GESAMTPREIS (nur Standfläche)",null,null,null,null,null,null,{"$f":"SUM(L15+L17+L19+L21+L25+L27+L29+L31)","v":0}]
[null,null,null,null,"Mit Bereitstellung der Standbestätigung/Standrechnung wird eine Nebenkostenpauschale (Strom, Wasser, Tickets) in Höhe von 28 EUR/m2 erhoben, die ebenfalls binnen 21 Tagen zur Zahung fällig wird. Die Verrechnung erfolgt nach der Veranstaltung."]
[]
[]
[]
[null,null,"FULL-SERVICE-STAND"]
[null,null,null,null,"Full-Service-Stand: Bitte wählen Sie Ihre Standgröße (m²)",null,null,null,null,null,null,0]
[]
[]
[]
[null,null,null,null,"Full-Service-Stand „Comfort“, Reihenstand",null,null,null,308,"€ / m²",null,{"$f":"IF(N15=5,308*L42,0)","v":0}]
[]
[null,null,null,null,"Full-Service-Stand „Comfort“, Eckstand",null,null,null,331,"€ / m²",null,{"$f":"IF(N15=6,331*L42,0)","v":0}]
[]
[null,null,null,null,"Full-Service-Stand „Superior“, Reihenstand",null,null,null,353,"€ / m²",null,{"$f":"IF(N15=7,353*L42,0)","v":0}]
[]
[null,null,null,null,"Full-Service-Stand „Superior“, Eckstand",null,null,null,373,"€ / m²",null,{"$f":"IF(N15=8,373*L42,0)","v":0}]
[]
[null,null,null,null,"Full-Service-Stand „Exclusive“, Reihenstand",null,null,null,473,"€ / m²",null,{"$f":"IF(N15=9,398*L42,0)","v":0}]
[]
[null,null,null,null,"Full-Service-Stand „Exclusive“, Eckstand",null,null,null,499,"€ / m²",null,{"$f":"IF(N15=10,499*L42,0)","v":0}]
[]
[null,null,null,null,"Full-Service-Stand \"Excl.-Sustainability\", Reihe",null,null,null,515,"€ / m²",null,{"$f":"IF(N15=13,515*L42,0)","v":0}]
[]
[null,null,null,null,"Full-Service-Stand \"Excl.-Sustainability\", Eckst.",null,null,null,538,"€ / m²",null,{"$f":"IF(N15=14,538*L42,0)","v":0}]
[]
[]
[]
[null,null,null,null,"Anmeldegebühr",null,null,null,553,"€ / Aussteller",null,{"$f":"IF(SUM(L46:L60)>0,553,0)","v":0}]
[]
[null,null,null,null,"Basisgebühr Full-Service-Stand",null,null,null,585,"€ / Aussteller",null,{"$f":"IF(SUM(L46:L60)>0,585,0)","v":0}]
[]
[null,null,null,null,"Medienpaket BASIC",null,null,null,795,"€ / Aussteller",null,{"$f":"IF(SUM(L46:L61)>0,795,0)","v":0}]
[]
[null,null,null,null,"Mitaussteller-Gebühr",null,null,null,389,"€ / Mitaussteller",null,{"$f":"IF(SUM(L46:L60)>0,G70*(I70+I64+I68),0)","v":0},"*)"]
[null,null,null,null,"*) beinhaltet Mitaussteller-Gebühr, Anmeldegebühr und Medienpaket BASIC"]
[]
[]
[]
[null,null,null,null,"GESAMTPREIS (Full-Service-Stand)",null,null,null,null,null,null,{"$f":"SUM(L15+L17+L19+L21+L25+L27+L29+L31+L46+L48+L50+L52+L54+L56+L58+L60+L64+L66+L68)+L70","v":0}]